fUSD/lending_fUSD_20251123
["ID","MTS","AMOUNT","RATE_DAILY","PERIOD"]
[394675638,1763857831888,-126109.31293388,0.000162,5]
[394675639,1763857831900,-1518.58334676,0.000162,5]
[394675640,1763857831919,-8092.92151329,0.000162,5]
[394675641,1763857831930,-1618.14212,0.000162,5]
[394675642,1763857831941,-13867.31893508,0.000162,5]
[394675699,1763857837494,-500.0,0.00016199,2]
[394675700,1763857837504,-410.17,0.000162,5]
[394675701,1763857837515,-192.96798567,0.000162,5]
[394675702,1763857837525,-166.66,0.00016391,2]
[394675703,1763857837534,-500.0,0.00016438,2]
[394675704,1763857837543,-631.9665273,0.00016438,2]
[394675705,1763857837553,-262.36450666,0.00016438,2]
[394675706,1763857837563,-922.41612027,0.00016438,2]
[394675707,1763857837572,-357.32877097,0.000166,2]
[394675708,1763857837582,-250.0,0.00016612,2]
[394675709,1763857837591,-168.61,0.00016665,2]
[394675710,1763857837601,-150.0,0.00016675,2]
[394675711,1763857837610,-166.66,0.00016722,2]
[394675712,1763857837619,-4018.37997842,0.00016946,2]
[394675713,1763857837629,-434.60520222,0.00016946,2]
[394675714,1763857837638,-500.0,0.00016973,2]
[394675715,1763857837647,-184.79730938,0.00016973,2]
[394675716,1763857837657,-500.0,0.00016973,2]
[394675717,1763857837666,-159.903552,0.00016973,2]
[394675718,1763857837675,-500.0,0.00016973,2]
[394675719,1763857837687,-159.903552,0.00016973,2]
[394675720,1763857837697,-500.0,0.00016973,2]
[394675721,1763857837705,-479.2266999,0.00016973,2]
[394675722,1763857837714,-159.903552,0.00016973,2]
[394675723,1763857837726,-500.0,0.00016973,2]
[394675724,1763857837735,-500.0,0.00016973,2]
[394675725,1763857837749,-500.0,0.00016973,2]
[394675726,1763857837758,-500.0,0.00016973,2]
[394675727,1763857837769,-500.0,0.00016973,2]
[394675728,1763857837779,-245.0,0.00016986,2]
[394675729,1763857837789,-994.61602008,0.00016986,2]
[394675730,1763857837801,-1132.81538968,0.00016986,2]
[394675731,1763857837812,-1260.0,0.00016986,2]
[394675732,1763857837824,-1118.10003,0.00016986,2]
[394675733,1763857837874,-6332.09775466,0.00016986,2]
[394675734,1763857837886,-17101.19080558,0.00016986,2]
[394675736,1763857837895,-253.52638051,0.0001699,2]
[394675738,1763857837904,-743.1,0.0001699,2]
[394675740,1763857837913,-743.1,0.0001699,2]
[394675742,1763857837923,-500.0,0.00016999,2]
[394675743,1763857837932,-500.0,0.00016999,2]
[394675744,1763857837941,-500.0,0.00016999,2]
[394675745,1763857837951,-500.0,0.00016999,2]
[394675746,1763857837960,-500.0,0.00016999,2]
[394675747,1763857837969,-500.0,0.00016999,2]
[394675748,1763857837978,-500.0,0.00016999,2]
[394675749,1763857837987,-500.0,0.00016999,2]
[394675750,1763857837996,-500.0,0.00016999,2]
[394675751,1763857838005,-500.0,0.00016999,2]
[394675752,1763857838014,-500.0,0.00016999,2]
[394675753,1763857838024,-500.0,0.00016999,2]
[394675754,1763857838034,-377.11295136,0.00016999,2]
[394675755,1763857838043,-500.0,0.00016999,2]
[394675756,1763857838053,-500.0,0.00016999,2]
[394675757,1763857838062,-1013.79,0.00016999,2]
[394675758,1763857838072,-500.0,0.00016999,2]
[394675759,1763857838081,-820.04,0.00016999,2]
[394675760,1763857838090,-500.0,0.00016999,2]
[394675761,1763857838100,-500.0,0.00016999,2]
[394675762,1763857838109,-500.0,0.00016999,2]
[394675763,1763857838118,-500.0,0.00016999,2]
[394675764,1763857838127,-500.0,0.00016999,2]
[394675765,1763857838140,-510.76465813,0.00016999,2]
[394675766,1763857838150,-673.02,0.00016999,2]
[394675767,1763857838159,-500.0,0.00016999,2]
[394675768,1763857838168,-640.17426098,0.00016999,2]
[394675769,1763857838178,-542.61287031,0.00016999,2]
[394675770,1763857838187,-184.47199798,0.00016999,2]
[394675771,1763857838197,-418.74839553,0.00016999,2]
[394675772,1763857838207,-186.31497084,0.00016999,2]
[394675773,1763857838217,-250.0,0.00017,2]
[394675774,1763857838226,-2000.0,0.00017,2]
[394675775,1763857838236,-133293.30704818,0.00017,2]
[394675776,1763857838248,-480.35610043,0.00017,2]
[394675777,1763857839694,-500.0,0.00016999,2]
[394675778,1763857839705,-8035.0,0.00017,2]
[394675802,1763857843736,-500.0,0.00016999,2]
[394675804,1763857843747,-500.0,0.00016999,2]
[394675806,1763857843756,-499.498,0.00017,2]
[394675807,1763857843768,-279099.24882442,0.00017,2]
[394675808,1763857843779,-512030.00000005,0.00017,2]
[394675810,1763857845546,-500.0,0.00016999,2]
[394675811,1763857845556,-4544.53785144,0.00017,2]
[394675812,1763857845568,-900.20990338,0.00017,2]
[394675813,1763857845579,-2180.0,0.00017,2]
[394675814,1763857845653,-3112.4,0.00017,2]
[394675815,1763857845665,-1585.57444177,0.00017,2]
[394675816,1763857845677,-350611.77620028,0.00017,2]
[394675817,1763857845840,-2736.02671104,0.00017,2]
[394675860,1763858220343,157.11,8.046e-05,2]
[394675861,1763858220606,157.11,8.777e-05,2]
[394675862,1763858220758,157.11,9.509e-05,2]
[394675863,1763858220981,157.11,0.0001024,2]
[394675864,1763858221176,157.11,0.00010972,2]
[394675865,1763858221539,157.11,0.00011703,2]
[394675866,1763858222006,157.11,0.00012435,2]
[394675867,1763858222062,157.11,0.00013166,2]
[394675868,1763858222184,157.11,0.00013898,2]
[394675869,1763858222297,157.11,0.00014629,2]
[394675870,1763858222908,802.12,0.00013699,2]
[394675886,1763859031744,-157.11,0.00015361,2]
[394675887,1763859031754,-354.34,0.00015447,2]
[394675888,1763859031763,-75.35506096,0.00015533,2]
[394675889,1763859031774,-1124.64493904,0.00015533,2]
[394675890,1763859031783,-300.0,0.00015533,2]
[394675891,1763859031792,-1118.67407937,0.00015533,2]
[394675892,1763859031854,-81.32592063,0.00015533,2]
[394675894,1763859031863,-150.0,0.00015534,2]
[394675896,1763859031872,-150.0,0.00015534,2]
[394675898,1763859031882,-150.0,0.00015534,2]
[394675899,1763859031893,-150.0,0.00015534,2]
[394675900,1763859031903,-150.0,0.00015534,2]
[394675901,1763859031913,-150.0,0.00015534,2]
[394675902,1763859031922,-150.0,0.00015534,2]
[394675903,1763859031931,-150.0,0.00015534,2]
[394675904,1763859031941,-150.0,0.00015534,2]
[394675905,1763859031950,-152.19,0.00015741,2]
[394675906,1763859031959,-622.37,0.00015778,2]
[394675907,1763859031970,-977.63,0.00015778,2]
[394675909,1763859031980,-894.17772272,0.00015808,2]
[394675911,1763859031991,-2979.32227728,0.00015808,2]
[394675912,1763859032000,-2294.92604652,0.00016071,2]
[394675914,1763859032009,-157.11,0.00016092,2]
[394675916,1763859032019,-2391.53,0.00016171,2]
[394675918,1763859032028,-850.18,0.00016241,2]
[394675920,1763859032038,-623.62,0.00016276,2]
[394675922,1763859032048,-2294.92604653,0.00016338,2]
[394675923,1763859032058,-299.99,0.00016436,4]
[394675924,1763859032067,-1189.71,0.00016436,2]
[394675926,1763859032079,-714.17370871,0.00016438,2]
[394675928,1763859032093,-1188.0,0.00016438,2]
[394675935,1763859037726,-387.94218537,0.00016438,2]
[394675936,1763859037784,-1465.63410592,0.00016438,2]
[394675937,1763859037794,-175.04007068,0.00016591,2]
[394675938,1763859037804,-173.76992932,0.00016591,2]
[394675939,1763859037814,-198.52,0.00016658,2]
[394675940,1763859037824,-193.70507279,0.00016897,2]
[394675941,1763859037834,-250.0,0.00016897,2]
[394675942,1763859037843,-300.0,0.00016897,2]
[394675943,1763859037853,-300.0,0.00016897,2]
[394675944,1763859037862,-300.0,0.00016897,2]
[394675945,1763859037873,-300.0,0.00016897,2]
[394675946,1763859037882,-300.0,0.00016897,2]
[394675947,1763859037893,-250.0,0.00016897,2]
[394675948,1763859037902,-550.0,0.00016898,2]
[394675949,1763859037912,-1000.0,0.00016899,2]
[394675950,1763859037921,-633.69884444,0.00016899,2]
[394675951,1763859037931,-4356.54222344,0.00016899,2]
[394675952,1763859037940,-500.0,0.000169,2]
[394675953,1763859037949,-500.0,0.000169,2]
[394675955,1763859037958,-500.0,0.000169,2]
[394675957,1763859037967,-500.0,0.000169,2]
[394675959,1763859037976,-500.0,0.000169,2]
[394675961,1763859037986,-500.0,0.000169,2]
[394675963,1763859037995,-500.0,0.000169,2]
[394675965,1763859038004,-438.61520145,0.000169,2]
[394675967,1763859038013,-967.57,0.00016972,2]
[394675969,1763859038022,-500.0,0.00016973,2]
[394675971,1763859038032,-168.64340947,0.00016973,2]
[394675973,1763859038041,-500.0,0.00016973,2]
[394675975,1763859038052,-500.0,0.00016973,2]
[394675976,1763859038061,-500.0,0.00016973,2]
[394675977,1763859038070,-500.0,0.00016973,2]
[394675978,1763859038080,-500.0,0.00016973,2]
[394675979,1763859038093,-500.0,0.00016973,2]
[394675980,1763859038102,-159.903552,0.00016973,2]
[394675981,1763859038112,-500.0,0.00016973,2]
[394675982,1763859038121,-159.903552,0.00016973,2]
[394675983,1763859038131,-169.0,0.00016973,2]
[394675984,1763859038140,-500.39170595,0.00016973,2]
[394675985,1763859038149,-597.05199518,0.00016973,2]
[394675986,1763859038158,-159.903552,0.00016973,2]
[394675987,1763859038167,-159.903552,0.00016973,2]
[394675988,1763859038176,-500.0,0.00016973,2]
[394675989,1763859038185,-500.0,0.00016973,2]
[394675990,1763859038194,-500.0,0.00016973,2]
[394675991,1763859038203,-500.0,0.00016973,2]
[394675992,1763859038212,-500.0,0.00016973,2]
[394675993,1763859038221,-500.0,0.00016973,2]
[394675994,1763859038230,-500.0,0.00016973,2]
[394675995,1763859038240,-500.0,0.00016973,2]
[394675996,1763859038249,-646.53878068,0.00016973,2]
[394675997,1763859038259,-797.4747994,0.00016973,2]
[394675998,1763859038269,-241.0,0.00016974,2]
[394675999,1763859038288,-151.0,0.00016988,2]
[394676000,1763859038298,-151.0,0.00016988,2]
[394676001,1763859038307,-151.0,0.00016988,2]
[394676002,1763859038317,-151.0,0.00016988,2]
[394676003,1763859038326,-151.0,0.00016988,2]
[394676004,1763859038336,-151.0,0.00016988,2]
[394676005,1763859038346,-151.0,0.00016988,2]
[394676006,1763859038356,-151.0,0.00016988,2]
[394676007,1763859038365,-151.0,0.00016988,2]
[394676008,1763859038375,-151.0,0.00016988,2]
[394676009,1763859038384,-151.0,0.00016988,2]
[394676010,1763859038394,-151.0,0.00016988,2]
[394676011,1763859038403,-151.0,0.00016988,2]
[394676012,1763859038413,-151.0,0.00016988,2]
[394676013,1763859038423,-151.0,0.00016988,2]
[394676014,1763859038433,-297.65800971,0.00016988,2]
[394676015,1763859038443,-466.17,0.00016989,2]
[394676016,1763859038453,-1680.0,0.00016991,2]
[394676017,1763859038463,-420.0,0.00016991,2]
[394676018,1763859038473,-614.28874635,0.00016997,2]
[394676019,1763859038483,-151.0034411,0.00016997,2]
[394676020,1763859038493,-429.54226391,0.00016997,2]
[394676021,1763859038504,-500.0,0.00016997,2]
[394676022,1763859038514,-225.63588723,0.00016997,2]
[394676023,1763859038524,-393.30472448,0.00016997,2]
[394676024,1763859038535,-1038.0593425,0.00016998,5]
[394676025,1763859038549,-500.0,0.00016998,2]
[394676026,1763859038557,-500.0,0.00016998,2]
[394676027,1763859038567,-500.0,0.00016998,2]
[394676028,1763859038577,-500.0,0.00016998,2]
[394676029,1763859038587,-524.20354712,0.00016998,2]
[394676030,1763859038597,-500.0,0.00016998,2]
[394676031,1763859038816,-616.23,0.00016998,2]
[394676032,1763859038828,-523.46270611,0.00016998,2]
[394676033,1763859038838,-546.97831133,0.00016998,2]
[394676034,1763859038848,-500.0,0.00016998,2]
[394676035,1763859038859,-164.01378799,0.00016998,2]
[394676036,1763859038870,-739.27,0.00016998,2]
[394676037,1763859038881,-814.41,0.00016998,2]
[394676038,1763859038891,-718.3,0.00016998,2]
[394676039,1763859038901,-500.0,0.00016998,2]
[394676040,1763859038911,-500.0,0.00016998,2]
[394676041,1763859038922,-654.39,0.00016998,2]
[394676042,1763859038932,-500.0,0.00016998,2]
[394676043,1763859038941,-500.0,0.00016998,2]
[394676044,1763859038951,-500.0,0.00016998,2]
[394676045,1763859038961,-500.0,0.00016998,2]
[394676046,1763859038970,-500.0,0.00016998,2]
[394676047,1763859038980,-500.0,0.00016998,2]
[394676048,1763859038989,-500.0,0.00016998,2]
[394676049,1763859038999,-560.48,0.00016998,2]
[394676050,1763859039008,-500.0,0.00016998,2]
[394676051,1763859039018,-500.0,0.00016998,2]
[394676052,1763859039027,-500.0,0.00016998,2]
[394676053,1763859039037,-500.0,0.00016998,2]
[394676054,1763859039047,-500.0,0.00016998,2]
[394676055,1763859039058,-500.0,0.00016998,2]
[394676056,1763859039068,-500.0,0.00016998,2]
[394676057,1763859039078,-500.0,0.00016998,2]
[394676058,1763859039092,-284.21976108,0.00016998,2]
[394676059,1763859039102,-261.09654627,0.00016998,2]
[394676060,1763859039111,-500.0,0.00016998,2]
[394676061,1763859039121,-187.04799887,0.00016998,2]
[394676062,1763859039132,-470.9921175,0.00016998,2]
[394676063,1763859039142,-500.0,0.00016998,2]
[394676064,1763859039152,-314.2595971,0.00016998,2]
[394676065,1763859039163,-500.0,0.00016998,2]
[394676066,1763859039172,-500.0,0.00016998,2]
[394676067,1763859039182,-475.14816539,0.00016998,2]
[394676068,1763859039193,-500.0,0.00016998,2]
[394676069,1763859039211,-182.08697452,0.00016998,2]
[394676070,1763859039221,-644.98,0.00016998,2]
[394676071,1763859039232,-500.0,0.00016998,2]
[394676072,1763859039243,-500.0,0.00016998,2]
[394676073,1763859039253,-500.0,0.00016998,2]
[394676074,1763859039263,-500.0,0.00016998,2]
[394676075,1763859039274,-503.28152362,0.00016998,2]
[394676076,1763859039284,-799.78,0.00016998,2]
[394676077,1763859039293,-687.28,0.00016998,2]
[394676078,1763859039303,-785.87,0.00016998,2]
[394676079,1763859039314,-672.3,0.00016998,2]
[394676080,1763859039324,-500.0,0.00016998,2]
[394676081,1763859039334,-636.14,0.00016998,2]
[394676082,1763859039345,-547.13448753,0.00016998,2]
[394676083,1763859039355,-500.0,0.00016998,2]
[394676084,1763859039366,-646.69,0.00016998,2]
[394676085,1763859039377,-966.5,0.00016998,2]
[394676086,1763859039388,-500.0,0.00016998,2]
[394676087,1763859039398,-500.0,0.00016998,2]
[394676088,1763859039407,-500.0,0.00016998,2]
[394676089,1763859039417,-743.06,0.00016998,2]
[394676090,1763859039427,-500.0,0.00016998,2]
[394676091,1763859039436,-217.48144028,0.00016998,2]
[394676092,1763859039447,-718.0,0.00016998,2]
[394676093,1763859039457,-500.0,0.00016998,2]
[394676094,1763859039469,-1140.01,0.00016998,2]
[394676095,1763859039479,-500.0,0.00016998,2]
[394676096,1763859039489,-500.0,0.00016998,2]
[394676097,1763859039500,-1296.25,0.00016998,2]
[394676098,1763859039510,-500.0,0.00016998,2]
[394676099,1763859039520,-500.0,0.00016998,2]
[394676100,1763859039531,-500.0,0.00016998,2]
[394676101,1763859039541,-516.12,0.00016998,2]
[394676102,1763859039552,-500.0,0.00016998,2]
[394676103,1763859039567,-727.74,0.00016998,2]
[394676104,1763859039577,-500.0,0.00016998,2]
[394676105,1763859039587,-500.0,0.00016998,2]
[394676106,1763859039596,-856.65,0.00016998,2]
[394676107,1763859039606,-505.31561021,0.00016998,2]
[394676108,1763859039616,-500.0,0.00016998,2]
[394676109,1763859039626,-500.0,0.00016998,2]
[394676110,1763859039636,-500.0,0.00016998,2]
[394676111,1763859039646,-479.73435657,0.00016998,2]
[394676112,1763859039656,-500.0,0.00016998,2]
[394676113,1763859039665,-500.0,0.00016998,2]
[394676114,1763859039674,-300.0,0.00016998,2]
[394676115,1763859039684,-500.0,0.00016998,2]
[394676116,1763859039694,-500.0,0.00016998,2]
[394676117,1763859039703,-500.0,0.00016998,2]
[394676119,1763859039713,-500.0,0.00016998,2]
[394676120,1763859039723,-500.0,0.00016998,2]
[394676121,1763859039734,-500.0,0.00016998,2]
[394676122,1763859039744,-500.0,0.00016998,2]
[394676123,1763859039753,-552.3,0.00016998,2]
[394676124,1763859039763,-500.0,0.00016998,2]
[394676125,1763859039772,-629.68,0.00016998,2]
[394676126,1763859039781,-500.0,0.00016998,2]
[394676127,1763859039791,-571.73,0.00016998,2]
[394676128,1763859039801,-500.0,0.00016998,2]
[394676129,1763859039811,-500.0,0.00016998,2]
[394676130,1763859039820,-500.0,0.00016998,2]
[394676131,1763859039829,-500.0,0.00016998,2]
[394676132,1763859039839,-159.74732196,0.00016998,2]
[394676133,1763859039849,-500.0,0.00016998,2]
[394676134,1763859039859,-551.26360831,0.00016998,2]
[394676135,1763859039868,-500.0,0.00016998,2]
[394676136,1763859039878,-500.0,0.00016998,2]
[394676137,1763859039887,-500.0,0.00016998,2]
[394676138,1763859039897,-500.0,0.00016998,2]
[394676139,1763859039906,-500.0,0.00016998,2]
[394676140,1763859039915,-500.0,0.00016998,2]
[394676141,1763859039925,-500.0,0.00016998,2]
[394676142,1763859039938,-500.0,0.00016998,2]
[394676143,1763859039948,-500.0,0.00016998,2]
[394676144,1763859039958,-798.11,0.00016998,2]
[394676145,1763859039967,-714.05,0.00016998,2]
[394676146,1763859039976,-500.0,0.00016998,2]
[394676147,1763859039986,-500.0,0.00016998,2]
[394676148,1763859039996,-500.0,0.00016998,2]
[394676149,1763859040005,-500.0,0.00016998,2]
[394676150,1763859040015,-273.94295942,0.00016998,2]
[394676151,1763859040024,-500.0,0.00016998,2]
[394676152,1763859040034,-500.0,0.00016998,2]
[394676153,1763859040043,-529.05,0.00016998,2]
[394676154,1763859040053,-500.0,0.00016998,2]
[394676155,1763859040063,-500.0,0.00016998,2]
[394676156,1763859040073,-500.0,0.00016998,2]
[394676157,1763859040084,-599.93,0.00016998,2]
[394676158,1763859040096,-1130.17,0.00016998,2]
[394676159,1763859040105,-546.39,0.00016998,2]
[394676160,1763859040114,-733.84,0.00016998,2]
[394676161,1763859040125,-1014.32,0.00016998,2]
[394676162,1763859040134,-500.0,0.00016998,2]
[394676163,1763859040144,-500.0,0.00016998,2]
[394676164,1763859040154,-169.69475747,0.00016998,2]
[394676165,1763859040166,-500.0,0.00016998,2]
[394676166,1763859040176,-500.0,0.00016998,2]
[394676167,1763859040189,-500.0,0.00016998,2]
[394676168,1763859040199,-652.15,0.00016998,2]
[394676169,1763859040208,-500.0,0.00016998,2]
[394676170,1763859040218,-624.02,0.00016998,2]
[394676171,1763859040227,-1139.07,0.00016998,2]
[394676172,1763859040236,-364.31486953,0.00016998,2]
[394676173,1763859040246,-500.0,0.00016998,2]
[394676174,1763859040255,-500.0,0.00016998,2]
[394676175,1763859040264,-410.46323083,0.00016998,2]
[394676176,1763859040273,-511.86,0.00016998,2]
[394676177,1763859040283,-500.0,0.00016998,2]
[394676178,1763859040292,-500.0,0.00016998,2]
[394676179,1763859040301,-316.3654966,0.00016998,2]
[394676181,1763859040312,-500.0,0.00016998,2]
[394676182,1763859040322,-500.0,0.00016998,2]
[394676184,1763859040331,-500.0,0.00016998,2]
[394676185,1763859040341,-500.0,0.00016998,2]
[394676186,1763859040351,-411.57604973,0.00016998,2]
[394676187,1763859040360,-500.0,0.00016998,2]
[394676188,1763859040371,-500.0,0.00016998,2]
[394676189,1763859040380,-402.45775921,0.00016998,2]
[394676190,1763859040389,-500.0,0.00016998,2]
[394676191,1763859040399,-500.0,0.00016998,2]
[394676192,1763859040409,-571.46,0.00016998,2]
[394676193,1763859040419,-500.0,0.00016998,2]
[394676194,1763859040429,-500.0,0.00016998,2]
[394676195,1763859040440,-1000.0,0.00016998,2]
[394676196,1763859040451,-500.0,0.00016998,2]
[394676197,1763859040461,-880.94,0.00016998,2]
[394676198,1763859040471,-720.28,0.00016998,2]
[394676199,1763859040481,-500.0,0.00016998,2]
[394676200,1763859040490,-500.0,0.00016998,2]
[394676201,1763859040499,-500.0,0.00016998,2]
[394676202,1763859040509,-501.25527172,0.00016998,2]
[394676203,1763859040519,-500.0,0.00016998,2]
[394676204,1763859040528,-500.0,0.00016998,2]
[394676205,1763859040538,-500.0,0.00016998,2]
[394676206,1763859040547,-766.53,0.00016998,2]
[394676207,1763859040557,-500.0,0.00016998,2]
[394676208,1763859040570,-951.4,0.00016998,2]
[394676209,1763859040579,-500.0,0.00016998,2]
[394676210,1763859040588,-1456.65,0.00016998,2]
[394676211,1763859040598,-636.28,0.00016998,2]
[394676212,1763859040607,-885.8,0.00016998,2]
[394676213,1763859040619,-500.0,0.00016998,2]
[394676214,1763859040776,-500.0,0.00016998,2]
[394676215,1763859040786,-463.01953351,0.00016998,2]
[394676216,1763859040796,-500.0,0.00016998,2]
[394676217,1763859040806,-500.0,0.00016998,2]
[394676218,1763859040816,-500.0,0.00016998,2]
[394676219,1763859040826,-538.43,0.00016998,2]
[394676220,1763859040835,-500.0,0.00016998,2]
[394676221,1763859040845,-195.21022348,0.00016998,2]
[394676222,1763859040854,-500.0,0.00016998,2]
[394676223,1763859040863,-500.0,0.00016998,2]
[394676224,1763859040873,-540.21,0.00016998,2]
[394676225,1763859040882,-554.23,0.00016998,2]
[394676226,1763859040892,-500.0,0.00016998,2]
[394676227,1763859040901,-500.0,0.00016998,2]
[394676228,1763859040910,-500.0,0.00016998,2]
[394676229,1763859040920,-500.0,0.00016998,2]
[394676230,1763859040929,-500.0,0.00016998,2]
[394676231,1763859040939,-500.0,0.00016998,2]
[394676232,1763859040948,-508.85895819,0.00016998,2]
[394676233,1763859040958,-313.64119125,0.00016998,2]
[394676234,1763859040969,-500.0,0.00016998,2]
[394676235,1763859040978,-500.0,0.00016998,2]
[394676236,1763859040987,-500.0,0.00016998,2]
[394676237,1763859040997,-500.0,0.00016998,2]
[394676238,1763859041006,-500.0,0.00016998,2]
[394676239,1763859041016,-998.19,0.00016998,2]
[394676240,1763859041026,-500.0,0.00016998,2]
[394676241,1763859041035,-500.0,0.00016998,2]
[394676242,1763859041045,-500.0,0.00016998,2]
[394676243,1763859041057,-500.0,0.00016998,2]
[394676244,1763859041067,-500.0,0.00016998,2]
[394676245,1763859041076,-500.0,0.00016998,2]
[394676246,1763859041087,-500.0,0.00016998,2]
[394676247,1763859041098,-500.0,0.00016998,2]
[394676248,1763859041107,-500.0,0.00016998,2]
[394676249,1763859041118,-500.0,0.00016998,2]
[394676250,1763859041129,-523.63,0.00016998,2]
[394676251,1763859041138,-500.0,0.00016998,2]
[394676252,1763859041147,-500.0,0.00016998,2]
[394676253,1763859041157,-536.35,0.00016998,2]
[394676254,1763859041168,-500.0,0.00016998,2]
[394676255,1763859041177,-500.0,0.00016998,2]
[394676256,1763859041186,-500.0,0.00016998,2]
[394676257,1763859041196,-299.3076381,0.00016998,2]
[394676258,1763859041205,-500.0,0.00016998,2]
[394676259,1763859041214,-500.0,0.00016998,2]
[394676260,1763859041223,-410.58343064,0.00016998,2]
[394676261,1763859041233,-500.0,0.00016998,2]
[394676262,1763859041242,-500.0,0.00016998,2]
[394676263,1763859041251,-500.0,0.00016998,2]
[394676264,1763859041261,-348.24711689,0.00016998,2]
[394676265,1763859041270,-500.0,0.00016998,2]
[394676266,1763859041280,-500.0,0.00016998,2]
[394676267,1763859041289,-415.8867928,0.00016998,2]
[394676268,1763859041298,-500.0,0.00016998,2]
[394676269,1763859041307,-500.0,0.00016998,2]
[394676270,1763859041317,-500.0,0.00016998,2]
[394676271,1763859041326,-500.0,0.00016998,2]
[394676272,1763859041335,-500.0,0.00016998,2]
[394676273,1763859041344,-410.77027796,0.00016998,2]
[394676274,1763859041353,-500.0,0.00016998,2]
[394676275,1763859041362,-500.0,0.00016998,2]
[394676276,1763859041372,-597.17673974,0.00016998,2]
[394676277,1763859041381,-500.0,0.00016998,2]
[394676278,1763859041391,-500.0,0.00016998,2]
[394676279,1763859041400,-503.41241425,0.00016998,2]
[394676280,1763859041409,-500.0,0.00016998,2]
[394676281,1763859041422,-500.0,0.00016998,2]
[394676282,1763859041432,-500.0,0.00016998,2]
[394676283,1763859041442,-500.0,0.00016998,2]
[394676284,1763859041452,-393.7561651,0.00016998,2]
[394676285,1763859041462,-500.0,0.00016998,2]
[394676286,1763859041472,-688.34,0.00016998,2]
[394676287,1763859041482,-500.0,0.00016998,2]
[394676288,1763859041491,-500.0,0.00016998,2]
[394676289,1763859041501,-588.17,0.00016998,2]
[394676290,1763859041510,-1595.92,0.00016998,2]
[394676291,1763859041520,-500.0,0.00016998,2]
[394676292,1763859041530,-500.0,0.00016998,2]
[394676293,1763859041539,-500.0,0.00016998,2]
[394676294,1763859041549,-500.0,0.00016998,2]
[394676295,1763859041558,-500.0,0.00016998,2]
[394676296,1763859041570,-500.0,0.00016998,2]
[394676297,1763859041579,-500.0,0.00016998,2]
[394676298,1763859041588,-731.02,0.00016998,2]
[394676299,1763859041598,-500.0,0.00016998,2]
[394676300,1763859041608,-500.0,0.00016998,2]
[394676301,1763859041618,-627.65,0.00016998,2]
[394676302,1763859041628,-500.0,0.00016998,2]
[394676303,1763859041637,-500.0,0.00016998,2]
[394676304,1763859041647,-500.0,0.00016998,2]
[394676305,1763859041657,-500.0,0.00016998,2]
[394676306,1763859041666,-1023.17,0.00016998,2]
[394676307,1763859041675,-500.0,0.00016998,2]
[394676308,1763859041685,-625.11,0.00016998,2]
[394676309,1763859041695,-500.0,0.00016998,2]
[394676310,1763859041705,-500.0,0.00016998,2]
[394676311,1763859041714,-1018.9,0.00016998,2]
[394676312,1763859041723,-500.0,0.00016998,2]